bitfinex-derivatives/quotes_SOLF0:USTF0_20251002
["timestamp","ask_amount","ask_price","bid_price","bid_amount"]
[1759434859567,1.75552517,232.86,232.76,1.75552517]
[1759434860566,1.75552517,232.89,232.76,1.75552517]
[1759434862066,1.75552517,232.89,232.77,107.36]
[1759434862473,7.15,232.91,232.79,1.75552517]
[1759434863175,7.15,232.91,232.79,5.61892517]
[1759434863572,7.15,232.91,232.79,1.75552517]
[1759434863773,1.75552517,232.89,232.8,107.36]
[1759434863969,1.75552517,232.89,232.76,1.75552517]
[1759434863970,1.75552517,232.89,232.81,107.36]
[1759434867576,9.25552517,232.89,232.76,1.75552517]
[1759434868077,9.25552517,232.89,232.77,48.16]
[1759434868573,1.75552517,232.87,232.77,48.16]
[1759434868770,1.75552517,232.87,232.76,1.75552517]
[1759434869176,1.75552517,232.87,232.77,107.36]
[1759434869772,1.75552517,232.87,232.78,107.36]
[1759434870083,1.75552517,232.84,232.77,107.34]
[1759434870269,60.0581,232.95,232.77,107.34]
[1759434870471,1.75552517,232.87,232.77,107.34]
[1759434870770,1.75552517,232.81,232.72,317.71769616]
[1759434870973,60.079,232.87,232.72,312.56]
[1759434870974,1.75552517,232.78,232.72,312.56]
[1759434873072,1.75552517,232.75,232.72,312.56]
[1759434874878,8.76552517,232.75,232.72,312.56]
[1759434875973,1.75552517,232.75,232.65,0.32357]
[1759434876175,1.75552517,232.72,232.66,31.26]
[1759434876772,1.75552517,232.75,232.66,31.26]
[1759434877075,1.75552517,232.78,232.66,31.26]
[1759434878179,1.75552517,232.78,232.66,33.01552517]
[1759434880173,1.75552517,232.75,232.65,0.32357]
[1759434880380,7.01,232.75,232.65,43.74357]
[1759434880580,1.75552517,232.71,232.65,43.74357]
[1759434883785,7.01,232.75,232.65,43.74357]
[1759434884083,1.75552517,232.74,232.65,43.74357]
[1759434884278,7.01,232.75,232.65,43.74357]
[1759434884279,9.75748327,232.75,232.65,43.74357]
[1759434884672,2.74748327,232.75,232.65,43.74357]
[1759434884877,7.01,232.74,232.65,43.74357]
[1759434887483,7.01,232.74,232.65,0.32357]
[1759434891686,7.01,232.74,232.65,4.18927]
[1759434891886,7.01,232.74,232.65,0.32357]
[1759434893286,2.74748327,232.81,232.65,0.32357]
[1759434893887,2.74748327,232.81,232.65,3.07105327]
[1759434895191,7.01,232.8,232.65,3.07105327]
[1759434895685,10.8733,232.8,232.65,0.32357]
[1759434895988,7.01,232.79,232.66,107.36]
[1759434897485,7.01,232.74,232.65,0.32357]
[1759434897885,9.75748327,232.81,232.65,0.32357]
[1759434898091,7.01,232.79,232.65,0.32357]
[1759434898683,2.74748327,232.77,232.66,36.54]
[1759434898990,7.01,232.76,232.66,36.54]
[1759434900191,7.01,232.76,232.65,0.32357]
[1759434900388,7.01,232.7,232.65,0.32357]
[1759434900588,7.01,232.66,232.49,2.74748327]
[1759434900788,7.01,232.66,232.44,312.56]
[1759434900789,7.01,232.66,232.52,25.52]
[1759434901097,7.01,232.63,232.46,2.74748327]
[1759434901284,9.75748327,232.6,232.44,312.56]
[1759434901487,9.75748327,232.6,232.49,34.6]
[1759434901685,7.01,232.6,232.49,34.6]
[1759434901890,2.74748327,232.65,232.49,38.4684]
[1759434902290,7.14,232.66,232.49,38.4684]
[1759434902291,7.14,232.66,232.5,2.74748327]
[1759434902994,7.14,232.66,232.53,3.8677]
[1759434903992,7.14,232.66,232.51,2.74748327]
[1759434904191,7.14,232.59,232.44,312.56]
[1759434904396,2.74748327,232.57,232.44,353.62]
[1759434904796,2.74748327,232.57,232.44,357.4892]
[1759434905095,7.14,232.59,232.44,353.62]
[1759434905397,7.14,232.59,232.45,3.8691]
[1759434906090,7.14,232.59,232.47,3.8687]
[1759434906292,7.14,232.59,232.46,60.1832]
[1759434906600,7.14,232.59,232.45,2.74748327]
[1759434906803,7.14,232.59,232.49,3.8683]
[1759434907297,7.14,232.59,232.46,3.8689]
[1759434908304,7.14,232.59,232.48,3.8685]
[1759434909299,7.14,232.59,232.5,3.8681]
[1759434909500,7.14,232.59,232.51,107.38]
[1759434911303,7.14,232.59,232.47,3.8686]
[1759434911503,7.14,232.59,232.48,107.4]
[1759434911904,7.14,232.59,232.49,3.8683]
[1759434912301,7.14,232.59,232.5,107.4]
[1759434913504,7.14,232.59,232.48,3.8685]
[1759434913699,2.74748327,232.56,232.49,107.4]
[1759434913899,7.14,232.55,232.44,312.56]
[1759434914105,7.14,232.51,232.38,3.8702]
[1759434914300,7.14,232.51,232.39,44.26]
[1759434915200,7.14,232.51,232.4,3.8699]
[1759434915804,7.14,232.51,232.39,44.26]
[1759434915805,7.14,232.47,232.39,44.26]
[1759434918505,2.74748327,232.51,232.39,44.26]
[1759434918708,7.14,232.5,232.39,44.26]
[1759434926918,7.16,232.57,232.4,2.74748327]
[1759434927219,317.38892466,232.76,232.39,44.26]
[1759434927220,7.16,232.62,232.48,2.74748327]
[1759434927421,7.16,232.62,232.49,41.16]
[1759434927722,7.16,232.61,232.35,60.95990912]
[1759434927916,7.16,232.61,232.43,2.74748327]
[1759434928223,11.0265,232.61,232.44,10.7]
[1759434928419,7.16,232.6,232.44,10.7]
[1759434930122,7.16,232.6,232.45,3.8691]
[1759434931312,7.16,232.6,232.44,10.7]
[1759434931313,7.16,232.6,232.47,3.8687]
[1759434932524,2.74748327,232.62,232.44,14.5691]
[1759434932723,7.12,232.61,232.44,14.5691]
[1759434933019,7.12,232.61,232.46,3.8689]
[1759434935929,7.12,232.57,232.4,2.74748327]
[1759434936121,2.74748327,232.58,232.41,31.46]
[1759434936322,7.12,232.56,232.41,31.46]
[1759434937728,7.12,232.56,232.44,3.8691]
[1759434938321,7.12,232.56,232.41,35.3296]
[1759434938522,2.74748327,232.55,232.41,35.3296]
[1759434939220,2.74748327,232.55,232.42,3.8694]
[1759434939426,7.12,232.54,232.42,3.8694]
[1759434940330,2.74748327,232.51,232.42,3.8694]
[1759434940526,7.12,232.5,232.42,3.8694]
[1759434941428,7.12,232.5,232.39,3.87]
[1759434942127,2.74748327,232.47,232.35,0.74870912]
[1759434942431,7.12,232.42,232.3,312.72]
[1759434943130,7.12,232.42,232.31,2.74748327]
[1759434943839,3.8681,232.51,232.31,2.74748327]
[1759434944130,4.15000565,232.53,232.31,2.74748327]
[1759434944131,13.04459209,232.5,232.31,2.74748327]
[1759434944332,1.76201641,232.48,232.37,1.76201641]
[1759434944533,1.76201641,232.48,232.38,50.74]
[1759434945330,7.12,232.47,232.38,50.74]
[1759434949138,4.15000565,232.53,232.39,1.76201641]
[1759434949139,1.76201641,232.51,232.39,1.76201641]
[1759434953142,7.12,232.5,232.38,52.50201641]
[1759434953942,1.76201641,232.49,232.38,52.50201641]
[1759434954145,1.76201641,232.49,232.39,94.12]
[1759434954146,7.12,232.48,232.39,94.12]
[1759434956843,7.12,232.45,232.36,107.44]
[1759434957238,7.12,232.45,232.35,107.44]
[1759434959342,7.12,232.51,232.36,1.76201641]
[1759434959542,1.76201641,232.49,232.36,1.76201641]
[1759434960149,7.12,232.48,232.37,3.8703]
[1759434960448,7.12,232.48,232.39,1.76201641]
[1759434962041,7.12,232.48,232.38,3.8701]
[1759434962243,7.12,232.48,232.38,5.63211641]
[1759434962739,7.12,232.48,232.38,1.76201641]
[1759434963148,4.15000565,232.53,232.35,109.20201641]
[1759434963149,1.76201641,232.46,232.35,109.20201641]
[1759434963345,7.09,232.42,232.3,313.46890247]
[1759434963643,7.09,232.42,232.31,107.42]
[1759434963839,8.85201641,232.42,232.31,107.42]
[1759434964647,8.85201641,232.46,232.33,1.76201641]
[1759434964846,7.09,232.46,232.36,1.76201641]
[1759434966049,8.85201641,232.46,232.37,87.04]
[1759434968052,1.76201641,232.49,232.38,5.63211641]
[1759434968241,7.09,232.5,232.37,87.04]
[1759434968445,1.76201641,232.49,232.39,1.76201641]
[1759434969448,7.09,232.5,232.39,1.76201641]
[1759434971351,7.09,232.5,232.38,3.8701]
[1759434971654,7.09,232.5,232.39,1.76201641]
[1759434973655,7.09,232.5,232.39,5.63191641]
[1759434974862,7.09,232.5,232.39,1.76201641]
[1759434975262,7.09,232.5,232.39,5.63191641]
[1759434976756,7.09,232.5,232.4,3.8698]
[1759434976957,1.76201641,232.54,232.42,1.76201641]
[1759434977166,7.09,232.53,232.42,1.76201641]
[1759434978567,7.09,232.5,232.43,49.0]
[1759434979458,1.76201641,232.51,232.43,49.0]
[1759434979662,7.09,232.5,232.43,49.0]
[1759434983871,11.2877,232.54,232.43,49.0]
[1759434984172,9.18201641,232.54,232.44,1.76201641]
[1759434985272,9.18201641,232.54,232.44,5.63111641]
[1759434985474,7.42,232.54,232.44,1.76201641]
[1759434987666,7.42,232.54,232.45,3.869]
[1759434988067,7.42,232.54,232.37,60.2054]
[1759434988068,7.42,232.47,232.35,312.9]
[1759434988266,9.18201641,232.47,232.35,312.9]
[1759434988576,60.158,232.56,232.35,312.9]
[1759434988577,7.42,232.43,232.36,107.36]
[1759434989677,1.76201641,232.44,232.36,107.36]
[1759434991283,7.42,232.47,232.36,109.12201641]
[1759434991480,7.42,232.47,232.36,112.99251641]
[1759434991982,7.42,232.47,232.36,109.12201641]
[1759434992175,7.42,232.47,232.36,107.36]
[1759434993582,7.42,232.47,232.37,3.8702]
[1759434996080,7.42,232.47,232.39,3.8701]
[1759434997089,1.76201641,232.48,232.39,3.8701]
[1759434998592,7.25,232.51,232.39,3.8701]
[1759434998593,9.01201641,232.51,232.39,3.8701]
[1759434999884,9.01201641,232.51,232.38,1.76201641]
[1759434999885,9.01201641,232.51,232.41,3.8697]
[1759435000083,9.01201641,232.51,232.42,107.36]
[1759435000683,7.25,232.51,232.42,107.36]
[1759435000887,9.01201641,232.51,232.42,107.36]
[1759435001288,1.76201641,232.51,232.42,107.36]
[1759435001497,7.25,232.47,232.42,107.36]
[1759435001692,1.76201641,232.48,232.42,107.36]
[1759435002290,7.25,232.47,232.42,107.36]
[1759435002492,1.76201641,232.48,232.42,107.36]
[1759435002688,1.76201641,232.51,232.42,107.36]
[1759435002889,9.01201641,232.51,232.42,107.36]
[1759435004294,7.25,232.51,232.42,107.36]
[1759435004689,2.75205393,232.56,232.37,2.75205393]
[1759435004895,7.25,232.51,232.38,38.18]
[1759435005094,2.75205393,232.52,232.38,38.18]
[1759435005291,7.25,232.51,232.38,38.18]
[1759435005490,2.75205393,232.52,232.38,38.18]
[1759435005895,7.25,232.51,232.38,38.18]
[1759435006197,2.75205393,232.52,232.38,38.18]
[1759435006497,7.25,232.51,232.38,38.18]
[1759435006691,3.8683,232.5,232.38,38.18]
[1759435006896,7.25,232.49,232.38,38.18]
[1759435008399,3.8681,232.51,232.35,316.7707]
[1759435008697,7.25,232.5,232.39,107.34]
[1759435009095,3.8681,232.51,232.39,107.34]
[1759435009295,7.25,232.48,232.36,3.8705]
[1759435009496,7.25,232.48,232.37,107.34]
[1759435010000,10.00205393,232.48,232.37,107.34]
[1759435011900,7.25,232.47,232.37,107.34]
[1759435013100,7.25,232.47,232.38,3.8702]
[1759435013701,7.25,232.47,232.37,107.34]
[1759435015097,7.25,232.47,232.38,3.8702]
[1759435015298,7.25,232.51,232.37,107.34]
[1759435016605,7.25,232.51,232.42,3.8694]
[1759435016800,7.25,232.51,232.43,107.34]
[1759435017403,7.25,232.51,232.43,111.2093]
[1759435019504,7.25,232.51,232.43,107.34]
[1759435019705,7.25,232.56,232.43,107.34]
[1759435019900,2.75205393,232.57,232.43,107.34]
[1759435020302,7.25,232.56,232.43,107.34]
[1759435020504,81.50933548,232.66,232.43,107.34]
[1759435020505,7.25,232.52,232.43,107.34]
[1759435020708,2.75205393,232.53,232.44,107.32]
[1759435020907,7.25,232.52,232.44,107.32]
[1759435021706,7.72,232.59,232.45,60.1863]
[1759435021905,7.72,232.59,232.46,60.1831]
[1759435022304,7.72,232.59,232.51,3.8679]
[1759435022500,7.72,232.59,232.52,107.32]
[1759435023106,2.75205393,232.62,232.52,107.32]
[1759435023305,12.67593548,232.66,232.47,107.32]
[1759435023306,7.72,232.53,232.47,107.32]
[1759435023509,7.72,232.53,232.48,107.32]
[1759435023811,7.72,232.53,232.47,107.32]
[1759435024309,2.75205393,232.5,232.44,107.32]
[1759435024710,7.72,232.49,232.44,107.32]
[1759435024911,2.75205393,232.5,232.44,107.32]
[1759435025106,7.72,232.49,232.44,107.32]
[1759435025310,2.75205393,232.5,232.44,107.32]
[1759435025514,7.72,232.49,232.44,107.32]
[1759435025713,2.75205393,232.5,232.44,107.32]
[1759435026010,7.72,232.49,232.44,107.32]
[1759435026314,2.75205393,232.5,232.44,107.32]
[1759435026511,7.72,232.49,232.44,107.32]
[1759435026816,10.47205393,232.5,232.44,107.32]
[1759435027416,10.47205393,232.5,232.44,111.1892]
[1759435028210,7.72,232.49,232.46,3.8689]
[1759435028410,7.72,232.49,232.44,107.32]
[1759435028717,2.75205393,232.5,232.44,107.32]
[1759435029021,7.72,232.49,232.44,107.32]
[1759435029309,2.75205393,232.5,232.44,107.32]
[1759435029513,2.75205393,232.5,232.45,3.8689]
[1759435030316,7.72,232.49,232.45,3.8689]
[1759435030510,7.72,232.49,232.46,3.8687]
[1759435030717,7.72,232.49,232.44,107.32]
[1759435031416,7.72,232.53,232.47,3.8686]
[1759435031719,10.47205393,232.53,232.47,3.8686]
[1759435032316,10.47205393,232.53,232.44,107.32]
[1759435034518,7.72,232.52,232.44,107.32]
[1759435034719,7.72,232.48,232.35,312.9]
[1759435034918,7.72,232.48,232.36,107.3]
[1759435039119,7.72,232.48,232.36,111.1705]
[1759435039820,3.8678,232.53,232.36,111.1705]
[1759435039821,7.72,232.52,232.36,111.1705]
[1759435044123,7.72,232.52,232.37,3.8702]
[1759435044729,2.75205393,232.53,232.36,107.3]
[1759435044730,7.16,232.5,232.36,107.3]
[1759435044921,7.16,232.5,232.35,312.9]
[1759435045120,7.16,232.5,232.36,107.28]
[1759435045417,3.8683,232.5,232.36,107.28]
[1759435045622,7.16,232.49,232.36,107.28]
[1759435046018,7.16,232.49,232.35,316.7705]
[1759435046216,13.78055393,232.49,232.36,107.28]
[1759435046419,7.16,232.48,232.36,107.28]
[1759435046826,7.16,232.48,232.37,3.8703]
[1759435047429,11.0286,232.48,232.37,3.8703]
[1759435047622,7.16,232.48,232.37,3.8703]
[1759435050029,7.16,232.48,232.38,3.8701]
[1759435050829,7.16,232.48,232.36,111.1505]
[1759435052532,7.16,232.48,232.37,3.8703]
[1759435053729,7.16,232.48,232.38,3.8701]
[1759435054126,7.16,232.48,232.36,107.28]
[1759435054328,7.45,232.53,232.36,110.03205393]
[1759435054528,7.45,232.53,232.4,2.75205393]
[1759435054831,7.45,232.53,232.41,107.26]
[1759435055733,7.45,232.53,232.45,3.8689]
[1759435055933,7.45,232.53,232.46,107.26]
[1759435058434,7.45,232.53,232.47,107.24]
[1759435061342,7.45,232.57,232.47,107.24]
[1759435062645,3.8669,232.59,232.47,107.24]
[1759435062845,3.16113542,232.58,232.47,107.24]
[1759435063039,7.45,232.57,232.47,107.24]
[1759435064241,1.761077,232.55,232.44,3.8691]
[1759435064548,7.45,232.54,232.45,107.22]
[1759435068850,60.1408,232.63,232.39,316.75]
[1759435068851,9.211077,232.52,232.39,316.75]
[1759435069054,9.211077,232.52,232.4,108.941077]
[1759435069254,9.211077,232.52,232.4,112.810777]
[1759435070556,1.761077,232.57,232.46,1.761077]
[1759435070852,9.211077,232.56,232.47,107.18]
[1759435076765,7.45,232.56,232.47,107.18]
[1759435079970,7.45,232.6,232.49,1.761077]
[1759435080466,7.45,232.68,232.52,1.761077]
[1759435080665,1.761077,232.64,232.47,107.18]
[1759435080862,9.211077,232.61,232.5,1.761077]
[1759435081466,1.761077,232.66,232.53,1.761077]
[1759435081665,7.28,232.59,232.47,111.0486]
[1759435081871,7.28,232.59,232.49,1.761077]
[1759435082573,7.28,232.59,232.49,5.629377]
[1759435082866,7.28,232.62,232.49,1.761077]
[1759435083571,7.28,232.59,232.47,107.18]
[1759435083974,7.28,232.59,232.49,1.761077]
[1759435085468,7.28,232.68,232.52,1.761077]
[1759435085677,7.28,232.68,232.59,1.761077]
[1759435085971,1.761077,232.76,232.64,3.8658]
[1759435086172,7.28,232.8,232.65,1.761077]
[1759435086378,7.28,232.8,232.71,1.761077]
[1759435086571,7.28,232.8,232.72,43.62]
[1759435087364,7.28,232.8,232.71,1.761077]
[1759435087568,7.28,232.8,232.72,53.12]
[1759435088268,7.28,232.8,232.61,62.0]
[1759435088470,7.28,232.78,232.65,1.761077]
[1759435088671,1.761077,232.76,232.65,1.761077]
[1759435089180,7.28,232.75,232.62,1.761077]
[1759435089364,1.761077,232.73,232.58,3.8668]
[1759435089564,7.28,232.72,232.55,316.6472]
[1759435089771,1.761077,232.7,232.58,1.761077]
[1759435089972,1.761077,232.7,232.59,107.06]
[1759435090177,1.761077,232.7,232.58,1.761077]
[1759435090473,1.761077,232.7,232.6,107.06]
[1759435090665,1.761077,232.7,232.61,107.06]
[1759435090865,7.28,232.69,232.62,107.06]
[1759435091069,7.28,232.69,232.56,1.761077]
[1759435091270,7.28,232.66,232.55,312.78]
[1759435091572,1.761077,232.64,232.56,107.06]
[1759435093374,7.28,232.63,232.56,107.06]
[1759435094169,7.28,232.71,232.57,1.761077]
[1759435094373,1.761077,232.7,232.57,1.761077]
[1759435094576,1.761077,232.7,232.56,107.06]
[1759435094577,7.28,232.71,232.6,1.761077]
[1759435095485,7.28,232.71,232.61,107.04]
[1759435095680,1.761077,232.7,232.62,107.04]
[1759435095980,1.761077,232.7,232.6,1.761077]
[1759435096178,1.761077,232.7,232.61,107.04]
[1759435096385,1.761077,232.7,232.6,1.761077]
[1759435096684,1.761077,232.7,232.62,107.04]
[1759435097282,1.761077,232.67,232.55,312.78]
[1759435097582,1.761077,232.67,232.56,108.801077]
[1759435097780,1.761077,232.67,232.56,1.761077]
[1759435097978,1.761077,232.67,232.57,107.04]
[1759435098179,1.761077,232.64,232.55,312.78]
[1759435098372,1.761077,232.64,232.56,107.04]
[1759435099082,7.28,232.6,232.57,107.04]
[1759435099685,1.761077,232.61,232.57,107.04]
[1759435099981,7.28,232.6,232.57,107.04]
[1759435100481,7.28,232.65,232.57,107.04]
[1759435100784,1.761077,232.61,232.57,107.04]
[1759435101082,1.761077,232.63,232.57,107.04]
[1759435106985,9.381077,232.63,232.57,107.04]
[1759435107382,7.62,232.59,232.55,312.78]
[1759435107588,9.381077,232.57,232.55,312.78]
[1759435107889,9.381077,232.57,232.48,3.8684]
[1759435108091,1.761077,232.54,232.45,3.8689]
[1759435108283,1.761077,232.54,232.46,107.02]
[1759435109283,3.8664,232.62,232.46,107.02]
[1759435109590,60.1126,232.74,232.46,108.781077]
[1759435109591,1.761077,232.57,232.46,108.781077]
[1759435110091,1.761077,232.57,232.47,107.02]
[1759435111891,1.761077,232.57,232.48,107.04]
[1759435113786,1.761077,232.57,232.49,107.04]
[1759435115799,9.541077,232.57,232.5,107.04]
[1759435117690,9.541077,232.57,232.47,3.8687]
[1759435117898,9.541077,232.57,232.48,51.26]
[1759435119097,1.761077,232.57,232.49,3.8684]
[1759435119293,1.761077,232.59,232.49,3.8684]
[1759435119492,1.761077,232.59,232.48,51.26]
[1759435120196,9.541077,232.59,232.48,51.26]
[1759435121297,12.87557136,232.65,232.49,86.68]
[1759435121298,7.78,232.57,232.49,86.68]
[1759435121602,1.761077,232.56,232.49,86.68]
[1759435122894,7.78,232.57,232.49,86.68]
[1759435123095,9.541077,232.57,232.49,86.68]
[1759435123404,9.541077,232.57,232.48,107.02]
[1759435124896,1.761077,232.57,232.48,107.02]
[1759435125103,1.761077,232.58,232.48,107.02]
[1759435126204,2.75090978,232.6,232.48,107.02]
[1759435126402,7.78,232.59,232.48,107.02]
[1759435128204,7.78,232.59,232.41,312.7]
[1759435128509,7.78,232.55,232.42,107.0]
[1759435129807,7.78,232.57,232.41,312.7]
[1759435130007,2.75090978,232.52,232.41,312.7]
[1759435130605,7.78,232.53,232.41,312.7]
[1759435130800,10.53090978,232.59,232.42,2.75090978]
[1759435131306,10.53090978,232.59,232.42,62.94350978]
[1759435131806,10.53090978,232.59,232.47,3.8686]
[1759435132006,10.53090978,232.59,232.48,107.0]
[1759435133209,14.39780978,232.59,232.48,107.0]
[1759435133907,7.78,232.59,232.48,107.0]
[1759435134413,10.53090978,232.63,232.48,107.0]
[1759435135211,2.75090978,232.59,232.48,107.0]
[1759435135514,7.78,232.58,232.48,107.0]
[1759435136114,11.647,232.58,232.48,107.0]
[1759435136515,7.78,232.58,232.48,107.0]
[1759435138919,7.78,232.58,232.48,110.8685]
[1759435139217,7.78,232.57,232.41,312.7]
[1759435139424,7.78,232.57,232.42,106.98]
[1759435140218,11.6472,232.57,232.42,110.8494]
[1759435140419,7.78,232.57,232.42,106.98]
[1759435141818,7.78,232.57,232.42,167.1723]
[1759435142122,7.78,232.57,232.45,2.75090978]
[1759435142320,7.24,232.62,232.45,2.75090978]
[1759435144224,7.24,232.65,232.49,2.75090978]
[1759435144422,7.24,232.65,232.5,95.2]
[1759435144724,7.24,232.65,232.53,2.75090978]
[1759435145317,7.24,232.67,232.53,2.75090978]
[1759435145520,7.24,232.67,232.54,106.96]
[1759435145714,3.8647,232.72,232.57,3.867]
[1759435145921,7.24,232.71,232.54,109.71090978]
[1759435146116,3.8651,232.69,232.5,9.64040006]
[1759435146327,7.24,232.68,232.52,2.75090978]
[1759435147222,7.24,232.63,232.45,9.64040006]
[1759435147427,7.24,232.63,232.46,79.87090978]
[1759435148122,7.24,232.59,232.41,322.34040006]
[1759435148320,7.24,232.59,232.42,106.96]
[1759435148823,3.8669,232.58,232.43,3.8694]
[1759435149024,7.24,232.57,232.43,3.8694]
[1759435150422,7.24,232.57,232.45,6.61990978]
[1759435151028,7.24,232.57,232.41,326.21000006]
[1759435151229,7.24,232.57,232.42,106.94]
[1759435151524,7.24,232.57,232.41,315.45090978]
[1759435151722,7.24,232.57,232.43,106.94]
[1759435152230,7.24,232.57,232.43,110.8094]
[1759435152819,7.24,232.56,232.41,312.7]
[1759435153018,7.24,232.56,232.42,106.94]
[1759435153827,7.24,232.56,232.42,110.8095]
[1759435154830,7.24,232.56,232.42,106.94]
[1759435155337,7.24,232.56,232.43,106.94]
[1759435155524,2.75090978,232.57,232.43,106.94]
[1759435155725,7.24,232.56,232.43,106.94]
[1759435156225,2.75090978,232.57,232.41,312.7]
[1759435156429,7.24,232.54,232.42,106.94]
[1759435157835,2.75090978,232.53,232.42,106.94]
[1759435158926,7.24,232.52,232.42,106.94]
[1759435159132,7.24,232.48,232.41,312.7]
[1759435159427,7.24,232.48,232.41,419.64]
[1759435162534,7.24,232.45,232.28,62.97920978]
[1759435162732,7.24,232.45,232.33,3.8709]
[1759435162934,7.24,232.45,232.34,83.84]
[1759435163335,7.24,232.45,232.3,4.62030247]
[1759435163640,7.24,232.38,232.31,106.96]
[1759435165238,2.75090978,232.43,232.26,312.84]
[1759435165430,7.47,232.42,232.27,106.96]
[1759435165633,7.47,232.42,232.28,0.74896694]
[1759435166341,7.47,232.42,232.29,3.8717]
[1759435167041,7.47,232.42,232.28,0.74896694]
[1759435167543,7.47,232.42,232.28,4.62076694]
[1759435168040,7.47,232.42,232.28,0.74896694]
[1759435168836,3.8697,232.41,232.28,0.74896694]
[1759435169144,7.47,232.4,232.28,0.74896694]
[1759435169538,2.75090978,232.35,232.14,69.90490006]
[1759435169738,7.47,232.34,232.17,2.75090978]
[1759435169938,7.47,232.34,232.19,0.74924107]
[1759435170140,7.47,232.34,232.2,47.24]
[1759435172439,7.47,232.34,232.21,2.75090978]
[1759435172646,2.75090978,232.37,232.22,60.2453]
[1759435172841,7.8,232.39,232.27,3.872]
[1759435173050,7.8,232.39,232.28,28.4]
[1759435175139,7.8,232.39,232.28,32.2717]
[1759435175334,2.75090978,232.43,232.28,28.4]
[1759435175538,2.75090978,232.43,232.21,60.247]
[1759435175539,7.8,232.42,232.21,60.247]
[1759435175738,7.8,232.42,232.28,3.8718]
[1759435175945,7.8,232.42,232.29,31.28]
[1759435179946,7.8,232.42,232.32,3.871]
[1759435180349,7.8,232.42,232.29,34.03090978]
[1759435180552,7.8,232.42,232.3,3.8715]
[1759435180947,7.8,232.42,232.29,34.03090978]
[1759435181652,7.8,232.42,232.29,2.75090978]
[1759435181952,7.8,232.41,232.3,79.52]
[1759435182150,2.75090978,232.42,232.3,79.52]
[1759435182350,7.8,232.37,232.3,79.52]
[1759435182946,2.75090978,232.38,232.3,79.52]
[1759435183149,7.8,232.33,232.23,75.86]
[1759435185251,2.75090978,232.37,232.23,75.86]
[1759435185452,7.8,232.32,232.23,75.86]
[1759435185755,7.8,232.32,232.19,0.74924107]
[1759435185946,2.75090978,232.33,232.2,107.02]
[1759435186145,7.8,232.32,232.2,107.02]
[1759435186345,1.76522937,232.27,232.2,107.02]
[1759435187053,9.56522937,232.27,232.17,107.02]
[1759435188249,9.56522937,232.27,232.17,110.8936]
[1759435188751,11.6715,232.31,232.17,107.02]
[1759435189051,1.76522937,232.28,232.17,108.78522937]
[1759435189252,1.76522937,232.28,232.18,1.76522937]
[1759435189449,1.76522937,232.28,232.18,5.63862937]
[1759435189651,9.56522937,232.35,232.24,1.76522937]
[1759435189847,7.8,232.31,232.25,49.92]